bitfinex/quotes_ETHUSD_20220118
["timestamp","ask_amount","ask_price","bid_price","bid_amount"]
[1642531455296,0.80552,3103.6,3103.2,4.33727792]
[1642531455491,3.9965,3104.3,3103.4,0.80541]
[1642531455692,3.9965,3104.3,3103.5,3.64334596]
[1642531455888,3.9965,3104.3,3103.5,3.72573174]
[1642531456090,8.2495,3104.6,3104.1,1.09239999]
[1642531456289,0.80529,3104.5,3104.1,1.89579999]
[1642531456495,0.80642685,3104.5,3104.1,0.8034]
[1642531457496,0.00113685,3104.5,3104.2,1.2703]
[1642531458597,0.00113685,3104.5,3104.3,3.54160078]
[1642531458796,0.00113685,3104.5,3104.4,3.80196332]
[1642531459941,0.00113685,3104.5,3104.4,6.5383474]
[1642531460340,0.00113685,3104.5,3104.4,4.81177408]
[1642531460548,1.0,3104.7,3104.5,5.8]
[1642531460742,1.0,3104.7,3104.6,3.71731674]
[1642531460942,1.0,3104.7,3104.6,5.52234674]
[1642531461143,0.00113685,3104.7,3104.6,5.52234674]
[1642531461341,1.00113685,3104.7,3104.6,5.52234674]
[1642531461547,4.4671,3105.7,3104.7,5.8]
[1642531461749,4.4671,3105.7,3104.9,2.4152685]
[1642531462047,1.0,3105.1,3105.0,0.80509]
[1642531462447,1.00227369,3105.1,3105.0,0.80509]
[1642531462690,1.00227369,3105.1,3105.0,3.69709268]
[1642531462886,0.3,3105.5,3105.1,4.3]
[1642531463092,0.3,3105.5,3105.3,0.80495]
[1642531463386,1.0,3105.4,3105.3,0.93375]
[1642531463587,1.0,3105.4,3105.3,2.8835374]
[1642531463588,1.3,3105.4,3105.3,2.8835374]
[1642531463785,1.3,3105.4,3105.3,3.3485374]
[1642531463987,1.3,3105.4,3105.3,1.465]
[1642531464587,1.3,3105.4,3105.3,0.465]
[1642531465086,0.98756252,3105.4,3105.3,0.465]
[1642531466289,1.28756252,3105.4,3105.3,0.465]
[1642531467547,1.28756252,3105.4,3105.3,1.465]
[1642531468353,1.28756252,3105.4,3105.3,0.465]
[1642531469350,1.28756252,3105.4,3105.0,0.80524]
[1642531469549,0.1288,3105.3,3105.0,0.80524]
[1642531469750,0.12993685,3105.3,3105.0,0.80524]
[1642531469951,0.80524,3105.2,3105.0,0.80524]
[1642531470192,0.81732849,3105.2,3105.0,4e-05]
[1642531470386,3.5788,3105.1,3105.0,4e-05]
[1642531471086,3.45,3105.1,3105.0,4e-05]
[1642531471790,1.10524,3105.2,3105.0,0.80528]
[1642531471989,1.27216636,3105.1,3105.0,0.80528]
[1642531474540,1.10524,3105.2,3105.0,4e-05]
[1642531476146,7.28418545,3105.1,3105.0,4e-05]
[1642531476846,4.18418545,3105.1,3105.0,4e-05]
[1642531477046,2.7,3105.1,3105.0,4e-05]
[1642531477445,1.10524,3105.2,3105.0,0.8053]
[1642531477886,1.10524,3105.2,3105.0,4e-05]
[1642531478088,2.42062689,3105.2,3105.0,4e-05]
[1642531478495,5.6788,3105.1,3105.0,4e-05]
[1642531480695,5.55,3105.1,3105.0,4e-05]
[1642531481542,7.84318777,3105.1,3105.0,4e-05]
[1642531481743,5.55,3105.1,3105.0,4e-05]
[1642531481943,2.54942689,3105.2,3105.0,4e-05]
[1642531482143,2.42062689,3105.2,3105.0,4e-05]
[1642531483946,6.03142682,3105.1,3105.0,4e-05]
[1642531485199,2.03142682,3105.1,3105.0,0.8053]
[1642531487091,2.03142682,3105.1,3105.0,4e-05]
[1642531487790,4.73142682,3105.1,3105.0,4e-05]
[1642531488592,2.03142682,3105.1,3105.0,4e-05]
[1642531488794,0.80524,3105.2,3105.0,2.78015676]
[1642531489047,1.2387005,3105.8,3105.0,2.78015676]
[1642531489048,3.189,3106.5,3105.2,0.04835487]
[1642531489248,0.40443294,3106.1,3105.3,0.5937]
[1642531489441,0.00170527,3105.6,3105.3,0.6715384]
[1642531489649,0.00170527,3105.6,3105.3,0.5937]
[1642531489844,0.00113685,3105.5,3105.4,4.7301264]
[1642531490046,0.00113685,3105.5,3105.4,5.3239264]
[1642531491447,0.00113685,3105.5,3105.4,8.2885094]
[1642531491651,0.00113685,3105.5,3105.4,6.3239264]
[1642531492046,0.00113685,3105.5,3105.4,9.1837528]
[1642531492738,0.00113685,3105.5,3105.4,9.20204727]
[1642531493324,8.58056,3106.5,3105.5,5.5]
[1642531493525,8.58056,3106.5,3106.4,2.01948678]
[1642531493526,4.2105,3106.5,3106.4,2.01948678]
[1642531493725,2.41464,3106.6,3106.4,0.7193]
[1642531494530,0.80484,3106.6,3106.4,1.88377974]
[1642531494828,1.60966,3106.6,3106.4,1.88377974]
[1642531495028,5.0,3106.5,3106.4,1.87772834]
[1642531495431,0.3,3106.5,3106.4,1.87772834]
[1642531495629,0.3,3106.5,3106.4,2.68255834]
[1642531496647,0.3,3106.7,3106.4,2.68255834]
[1642531496851,1.90956,3107.0,3106.4,2.68255834]
[1642531497046,0.00795792,3106.9,3106.4,2.68255834]
[1642531497248,0.00795792,3106.9,3106.8,1.98999519]
[1642531497448,1.90956,3107.0,3106.8,2.79473519]
[1642531497847,1.90956,3107.0,3106.8,0.80474]
[1642531500516,0.80491,3106.8,3106.4,1.60962]
[1642531500714,0.80491,3106.8,3106.2,0.5937]
[1642531500715,0.80492,3106.7,3106.2,0.5937]
[1642531500911,1.11174108,3106.7,3106.2,0.1287]
[1642531501521,1.88439269,3106.6,3105.5,1.24519832]
[1642531501717,1.61026,3106.3,3105.3,2.09964893]
[1642531501915,0.4287,3106.2,3105.3,0.48945893]
[1642531502120,0.43267896,3106.2,3105.3,0.48945893]
[1642531502316,0.00341054,3106.1,3105.3,0.48945893]
[1642531502720,1.09014795,3106.0,3105.4,0.80516]
[1642531503018,1.10739369,3105.9,3105.4,0.80516]
[1642531503417,0.00170527,3105.8,3105.4,0.80516]
[1642531503819,0.80629684,3105.7,3105.4,0.80516]
[1642531504042,1.61144684,3105.7,3105.4,0.80516]
[1642531504242,0.3,3105.6,3105.4,0.80516]
[1642531504842,1.91034,3105.6,3105.4,0.80516]
[1642531505042,0.3,3105.6,3105.4,0.80516]
[1642531506944,1.7582904,3105.5,3105.4,0.80516]
[1642531507988,2.0582904,3105.5,3105.4,0.80516]
[1642531508189,1.61056,3105.4,3105.1,0.00113685]
[1642531508388,1.73936,3105.4,3105.1,0.00113685]
[1642531508592,0.3,3105.3,3105.1,0.0022737]
[1642531508792,1.1053239,3105.3,3105.1,0.0022737]
[1642531508991,0.3,3105.3,3105.1,0.0022737]
[1642531509192,0.3,3105.3,3105.2,1.68978389]
[1642531509390,0.3,3105.3,3105.2,1.84873716]
[1642531509592,2.84464,3105.4,3105.2,1.84873716]
[1642531509593,2.54464,3105.4,3105.3,5.2288]
[1642531509797,0.1288,3105.4,3105.3,3.12517041]
[1642531509991,0.1288,3105.4,3105.3,0.12993685]
[1642531510191,0.1288,3105.4,3105.3,0.93501685]
[1642531511192,1.1051,3105.5,3105.3,0.80621685]
[1642531511840,1.91026,3105.5,3105.3,0.80621685]
[1642531514641,1.1051,3105.5,3105.4,0.31790283]
[1642531515496,1.4051,3105.5,3105.4,0.31790283]
[1642531516496,6.42823489,3105.5,3105.4,0.31790283]
[1642531516698,6.55703489,3105.5,3105.4,0.31790283]
[1642531517721,5.55,3105.4,3105.3,0.00113685]
[1642531517900,6.6788,3105.4,3105.3,0.00113685]
[1642531518098,6.6788,3105.4,3105.1,0.0022737]
[1642531518302,7.4842,3105.4,3105.1,0.0022737]
[1642531518501,2.2108339,3105.3,3105.1,0.0022737]
[1642531518699,5.8788,3105.2,3105.1,0.0022737]
[1642531518957,6.1788,3105.2,3105.1,0.0022737]
[1642531519251,7.6712674,3105.2,3105.1,0.0022737]
[1642531520252,8.6712674,3105.2,3105.1,0.0022737]
[1642531520856,11.63417863,3105.2,3105.1,0.0022737]
[1642531521756,11.63123138,3105.2,3105.1,0.0022737]
[1642531521955,8.6712674,3105.2,3105.1,0.0022737]
[1642531522557,27.5512674,3105.2,3104.2,2.73607736]
[1642531522801,1.61124,3104.8,3104.2,2.73607736]
[1642531522996,0.4288,3104.7,3104.3,0.00454739]
[1642531523196,1.85249166,3104.6,3104.3,0.00454739]
[1642531523399,0.01256135,3104.5,3104.3,0.00454739]
[1642531523596,5.9288,3104.4,3104.3,0.00454739]
[1642531523795,6.2288,3104.4,3104.3,0.00454739]
[1642531524096,7.41143,3104.2,3103.5,1.57347804]
[1642531524296,0.3,3104.1,3103.5,1.57347804]
[1642531524497,0.3,3103.8,3103.6,0.00397896]
[1642531524697,0.6,3103.8,3103.6,0.00397896]
[1642531524896,0.3,3103.8,3103.6,0.00397896]
[1642531525096,0.3,3103.8,3103.2,0.128937]
[1642531525097,1.40745689,3103.7,3103.5,0.00454738]
[1642531525296,1.40745689,3103.7,3103.1,1.57347804]
[1642531525297,5.8,3103.5,3103.1,1.57347804]
[1642531525505,0.1288,3103.4,3103.3,0.00113685]
[1642531525697,5.8,3103.3,3102.9,2.36078964]
[1642531525898,3.32097639,3103.2,3102.9,2.36078964]
[1642531526098,5.42695639,3103.2,3103.0,0.00170527]
[1642531526301,5.93402514,3103.1,3103.0,0.00170527]
[1642531526575,4.32979632,3103.1,3102.9,0.00227369]
[1642531526777,2.53478,3103.2,3102.9,0.00227369]
[1642531526778,4.7587424,3103.2,3102.9,0.00227369]
[1642531526976,2.21198,3103.2,3102.9,0.00227369]
[1642531527175,0.6,3103.2,3102.9,0.00227369]
[1642531527575,0.3,3103.4,3102.9,0.00227369]
[1642531527875,0.3,3103.5,3103.0,0.80567]
[1642531528083,0.1288,3104.2,3103.1,0.465]
[1642531528279,0.06260674,3104.4,3103.2,0.1288]
[1642531528475,0.00454739,3104.1,3103.3,0.465]
[1642531528675,0.00568423,3104.3,3103.4,0.1288]
[1642531528876,0.00397896,3104.0,3103.5,0.465]
[1642531529182,0.00341054,3103.9,3103.6,3.72949522]
[1642531529380,0.00341054,3103.9,3103.8,8.06573]
[1642531529575,0.06260674,3104.4,3103.8,8.65953]
[1642531529776,0.06260674,3104.4,3103.9,0.1288]
[1642531529976,8.73,3105.3,3104.0,1.2703]
[1642531529977,1.2437586,3104.2,3104.0,1.2703]
[1642531530193,1.2437586,3104.2,3104.1,0.1288]
[1642531530493,1.5437586,3104.2,3104.1,0.1288]
[1642531530994,1.8437586,3104.2,3104.1,0.1288]
[1642531531195,3.4549286,3104.2,3104.1,0.1288]
[1642531532003,4.4172177,3104.2,3104.1,0.1288]
[1642531532406,2.8060477,3104.2,3104.1,0.1288]
[1642531534238,2.8060477,3104.2,3103.6,0.1288]
[1642531534538,0.81006739,3104.1,3103.6,0.1288]
[1642531534939,0.00397896,3104.0,3103.6,0.1288]
[1642531535139,1.23237987,3103.9,3103.3,0.1288]
[1642531535339,1.18708427,3103.3,3103.2,1.73998]
[1642531535540,1.48708427,3103.3,3103.2,1.73998]
[1642531536745,1.48708427,3103.3,3103.2,0.1288]
[1642531537798,1.78708427,3103.3,3103.1,0.00113685]
[1642531538102,1.78708427,3103.3,3102.8,0.00284212]
[1642531538103,3.5788,3103.2,3102.8,0.00284212]
[1642531538297,8.17829629,3103.2,3102.8,0.00284212]
[1642531538501,0.3,3103.1,3102.4,0.00511581]
[1642531538698,0.3,3103.1,3102.4,0.13391581]
[1642531539100,0.3,3103.1,3102.8,1.61141]
[1642531539299,0.3,3103.2,3102.8,1.74021]
[1642531539502,3.09872427,3103.3,3102.9,0.00227369]
[1642531539705,1.61164,3103.3,3102.9,0.00227369]
[1642531539904,0.1288,3103.6,3103.0,0.1288]
[1642531540105,0.1288,3103.6,3103.1,0.465]
[1642531540304,0.00113685,3103.5,3103.2,0.1288]
[1642531540505,0.00113685,3103.5,3103.3,1.2705]
[1642531541747,0.00113685,3103.5,3103.4,4.5229622]
[1642531541950,0.80543,3104.2,3103.5,5.8]
[1642531542147,0.80543,3104.2,3103.6,1.39907]
[1642531542347,0.00113684,3103.7,3103.6,1.39907]
[1642531542947,0.80543,3104.2,3103.7,4.45]
[1642531543147,3.03793464,3104.5,3103.9,2.58354799]
[1642531543347,0.0022737,3104.1,3104.0,0.1288]
[1642531544247,0.0022737,3104.1,3104.0,4.03947]
[1642531544747,0.0022737,3104.1,3104.0,6.77577921]
[1642531544945,0.06466468,3104.1,3104.0,6.77577921]
[1642531545412,0.06466468,3104.1,3104.0,4.47577921]
[1642531546320,0.1288,3105.0,3104.0,5.94077921]
[1642531546519,1.61046,3105.2,3104.0,6.95557921]
[1642531546718,0.00227369,3104.5,3104.4,0.80515]
[1642531546919,0.1288,3105.5,3104.5,4.35]
[1642531547118,0.1288,3105.5,3104.6,0.465]
[1642531547319,1.29735168,3104.8,3104.6,0.465]
[1642531547517,1.59735168,3104.8,3104.6,4.0293653]
[1642531547719,0.00113685,3104.7,3104.6,4.2680653]
[1642531548017,0.00113685,3104.7,3104.6,3.463]
[1642531548822,0.00113685,3104.7,3104.6,3.5918]
[1642531549651,0.00113685,3104.7,3104.6,6.32752055]
[1642531550253,0.00113685,3104.7,3104.6,6.98342055]
[1642531550660,3.47223679,3105.6,3105.3,1.07004]
[1642531550854,4.9895,3105.7,3105.3,2.14424]
[1642531551061,0.1288,3105.8,3105.3,2.14424]
[1642531551256,0.1288,3106.3,3105.4,0.465]
[1642531551460,4.2806,3106.8,3105.4,0.465]
[1642531551461,0.00568423,3105.7,3105.4,0.465]
[1642531551859,0.00511581,3105.6,3105.5,3.52429151]
[1642531552160,1.49421228,3105.6,3105.5,3.98929151]
[1642531552359,1.49421228,3105.6,3105.5,2.07488]
[1642531552992,0.00511581,3105.6,3105.5,2.07488]
[1642531553999,0.00511581,3105.6,3105.5,0.465]
[1642531554595,1.09969692,3105.6,3105.5,0.465]
[1642531555194,1.09969692,3105.6,3105.2,2.4151]
[1642531555594,0.00454739,3105.5,3105.2,2.4151]
[1642531555996,0.00397896,3105.4,3105.3,3.20506]
[1642531556651,0.00397896,3105.4,3105.3,0.80506]
[1642531557246,0.00397896,3105.4,3105.3,2.64015354]
[1642531557848,0.00397896,3105.4,3105.3,3.10515354]
[1642531558048,0.00397896,3105.4,3105.3,5.35515354]
[1642531558847,0.00397896,3105.4,3105.3,7.03274869]
[1642531559052,0.00397896,3105.4,3105.3,1.27006]
[1642531559259,0.00397896,3105.4,3105.3,2.73535053]
[1642531559449,0.13277896,3105.4,3105.3,2.73535053]
[1642531559853,0.13277896,3105.4,3104.9,4.10354593]
[1642531560052,1.4551819,3105.3,3104.9,4.10354593]
[1642531560296,1.45859244,3105.3,3105.0,2.22652775]
[1642531560495,0.00284211,3105.2,3105.0,2.22652775]
[1642531560900,2.75227369,3105.1,3105.0,2.22652775]
[1642531561100,0.00227369,3105.1,3105.0,2.22652775]
[1642531561702,0.00227369,3105.1,3104.7,1.61058]
[1642531562103,0.00170527,3105.0,3104.7,1.61058]
[1642531562503,0.00113684,3104.9,3104.7,1.61058]
[1642531562902,0.00284211,3105.2,3104.7,1.61058]
[1642531563105,0.00284211,3105.2,3104.8,2.16862488]
[1642531563304,0.00227369,3105.1,3104.8,3.77897488]
[1642531563804,0.1288,3105.8,3104.8,4.24397488]
[1642531564044,1.1466,3105.9,3105.3,0.805]
[1642531564246,0.1288,3106.0,3105.3,0.805]
[1642531564247,0.00397896,3105.7,3105.3,0.805]
[1642531564447,0.00397896,3105.7,3105.3,1.61]
[1642531564642,0.00341054,3105.6,3105.4,0.1288]
[1642531565042,0.00284212,3105.5,3105.4,0.1288]
[1642531567712,0.00284212,3105.5,3105.3,5.0199]
[1642531567713,0.00284212,3105.5,3105.3,3.5]
[1642531568200,0.00227369,3105.4,3105.3,3.5]
[1642531568600,0.00227369,3105.4,3105.3,4.30516]
[1642531568801,0.00227369,3105.4,3105.3,0.80516]
[1642531569199,0.00227369,3105.4,3105.3,0.93396]
[1642531569400,0.00227369,3105.4,3105.3,0.80516]
[1642531570103,0.00227369,3105.4,3105.3,4.30516]
[1642531574948,0.00227369,3105.4,3105.3,3.5]
[1642531575994,0.13107369,3105.4,3105.3,3.5]
[1642531576197,0.00227369,3105.4,3105.3,3.5]
[1642531576799,0.1288,3106.1,3105.3,3.5]
[1642531577000,0.1287,3106.2,3105.3,3.5]
[1642531577198,0.11936143,3106.2,3105.3,4.3051]
[1642531577402,0.00113685,3106.1,3105.4,0.00284212]
[1642531577804,0.00113685,3106.1,3105.8,1.37894466]
[1642531578003,0.00113685,3106.1,3105.9,0.80496]
[1642531578299,0.00113685,3106.1,3105.9,1.60987]
[1642531579144,0.00113685,3106.1,3105.9,5.10987]
[1642531580143,0.00113685,3106.1,3105.9,4.30496]
[1642531580647,0.00113685,3106.1,3106.0,0.1287]
[1642531583897,0.00113685,3106.1,3105.9,4.30496]
[1642531585198,0.00113685,3106.1,3105.9,3.5]
[1642531586201,1.53267572,3106.0,3105.5,0.1287]
[1642531586457,1.53267572,3106.0,3105.5,3.5]
[1642531586660,1.53267572,3106.0,3105.6,0.00170527]
[1642531586857,1.53267572,3106.0,3105.6,0.80681527]
[1642531587261,0.00113685,3106.1,3105.6,0.80681527]
[1642531587262,0.00113685,3106.1,3105.7,0.00113685]
[1642531587860,0.00113685,3106.1,3105.8,0.80502]
[1642531588061,0.07983685,3106.5,3105.8,0.80502]
[1642531588260,0.07983685,3106.5,3105.9,1.50664962]
[1642531588460,1.6101206,3106.3,3105.9,1.50664962]
[1642531588660,1.6101206,3106.3,3105.9,0.00113685]
[1642531588860,0.3,3106.2,3105.9,0.00113685]
[1642531590804,0.3,3106.2,3105.9,1.22282676]
[1642531591203,1.9101759,3106.2,3105.9,0.00113685]
[1642531592204,1.9101759,3106.2,3106.0,1.21832312]
[1642531592604,1.9101759,3106.2,3105.9,2.73669805]
[1642531593607,1.9101759,3106.2,3105.9,0.00113685]
[1642531594043,1.9101759,3106.2,3105.8,0.00170527]
[1642531594743,1.1050859,3106.2,3105.8,3.54238284]
[1642531594947,0.3,3106.2,3105.8,3.54238284]
[1642531595148,0.3,3106.3,3105.9,0.00113685]
[1642531595352,0.00170527,3106.4,3105.9,0.00113685]
[1642531595748,0.80509,3106.2,3105.9,2.73675442]
[1642531595951,0.00113684,3106.3,3105.9,3.54178442]
[1642531596151,0.00113684,3106.3,3106.0,0.1287]
[1642531596849,0.00113684,3106.3,3106.0,2.86431757]
[1642531597252,0.00113684,3106.3,3106.1,0.80484]
[1642531597721,0.00113684,3106.3,3106.2,1.1786292]
[1642531598721,0.00113684,3106.3,3106.2,2.88678685]
[1642531598924,0.00113684,3106.3,3106.2,5.62240442]
[1642531601750,0.25113684,3106.5,3106.3,0.80486]
[1642531601952,7.45,3106.7,3106.3,0.80486]
[1642531602355,0.00170527,3106.6,3106.3,0.80486]
[1642531602753,0.00113685,3106.5,3106.3,0.80486]
[1642531604357,0.80603575,3106.5,3106.2,4.49649685]
[1642531604555,1.61099575,3106.5,3106.3,0.1287]
[1642531604758,1.91099575,3106.5,3106.3,0.1287]
[1642531604957,1.10609685,3106.5,3105.9,1.73975685]
[1642531605210,1.10609685,3106.5,3105.9,0.00113685]
[1642531605211,0.93376,3106.4,3105.9,0.00113685]
[1642531605411,0.93376,3106.4,3105.4,0.47152651]
[1642531605412,1.7388105,3106.4,3106.0,0.00170527]
[1642531605610,0.80514,3106.2,3105.9,1.40870351]
[1642531605815,0.1287,3106.1,3105.9,1.40870351]
[1642531606009,0.1287,3106.1,3106.0,0.00170527]
[1642531606211,0.1287,3106.2,3106.0,0.00170527]
[1642531606411,0.80511,3106.1,3105.8,0.00284211]
[1642531606616,3.5204309,3106.1,3105.8,0.00284211]
[1642531606817,3.5204309,3106.1,3105.8,0.80792211]
[1642531607015,2.7153109,3106.1,3106.0,1.0868302]
[1642531607416,2.2153109,3106.1,3106.0,1.08853547]
[1642531608017,1.4102009,3106.1,3106.0,1.08853547]
[1642531609057,1.7102009,3106.1,3106.0,1.08853547]
[1642531609258,1.7102009,3106.1,3106.0,3.29804289]
[1642531609457,1.7102009,3106.1,3106.0,0.00170527]
[1642531609857,0.3,3106.0,3105.8,0.00284211]
[1642531610060,1.9102073,3106.0,3105.8,0.00284211]
[1642531610660,1.1050973,3106.0,3105.8,1.53439151]
[1642531611165,1.9101973,3106.0,3105.9,0.00227369]
[1642531611567,11.97497959,3106.0,3105.9,0.00227369]
[1642531611763,11.97497959,3106.0,3105.7,0.128905]
[1642531611764,4.8,3105.9,3105.7,0.128905]
[1642531611962,0.1287,3105.8,3105.7,0.128905]
[1642531612362,0.1287,3105.8,3105.7,0.13004185]
[1642531612563,0.1287,3105.8,3105.7,1.61117343]
[1642531613000,5.8,3105.8,3105.2,1.61027]
[1642531613202,1.6106375,3105.6,3105.0,0.1287]
[1642531613401,0.1288,3105.5,3105.3,0.00227369]
[1642531613602,0.1712,3105.5,3105.3,0.80744369]
[1642531613808,0.3,3106.0,3105.4,0.1288]
[1642531614005,5.52399,3106.2,3105.4,0.13050527]
[1642531614204,0.00113685,3105.9,3105.5,0.00113684]
[1642531614406,0.8050596,3105.9,3105.5,0.00113684]
[1642531614606,2.4153496,3105.9,3105.2,0.00284212]
[1642531614907,2.4153496,3105.9,3105.6,3.10229761]
[1642531615304,2.7153496,3105.9,3105.6,3.10229761]
[1642531615506,0.80512,3105.8,3105.6,3.10229761]
[1642531615706,1.6102149,3105.8,3105.6,3.90739761]
[1642531615905,1.9102149,3105.8,3105.6,3.90739761]
[1642531616106,3.5204977,3105.8,3105.6,3.10229761]
[1642531616591,3.5204977,3105.8,3105.7,2.73607687]
[1642531616792,1.7602828,3105.8,3105.7,2.73607687]
[1642531617992,2.0602828,3105.8,3105.7,2.73607687]
[1642531619694,1.61052,3105.7,3105.2,0.00284212]
[1642531619895,2.415742,3105.7,3105.2,0.00284212]
[1642531620094,2.2104554,3105.6,3105.2,0.00284212]
[1642531620498,2.2104554,3105.6,3105.3,1.39259693]
[1642531620904,1.4052229,3105.6,3105.4,2.24706439]
[1642531621306,1.4052229,3105.6,3105.5,0.00113684]
[1642531621307,0.6,3105.6,3105.5,0.00113684]
[1642531621707,0.6,3105.6,3105.5,2.73712271]
[1642531622911,0.6,3105.6,3105.5,0.00113684]
[1642531624352,0.6,3105.6,3105.5,2.73712271]
[1642531624553,0.3,3105.7,3105.5,2.73712271]
[1642531624752,0.3,3105.6,3105.5,3.54223271]
[1642531624952,0.3,3105.7,3105.5,3.54223271]
[1642531625557,1.5338805,3105.9,3105.5,3.54223271]
[1642531626159,2.3390105,3105.9,3105.8,1.26207449]
[1642531626358,0.7288,3105.9,3105.8,1.26207449]
[1642531626561,0.62993685,3105.9,3105.8,1.26207449]
[1642531626759,0.00113685,3105.9,3105.8,1.26207449]
[1642531628006,0.00113685,3105.9,3105.8,3.99780909]
[1642531632053,0.00113685,3105.9,3105.8,3.89780909]
[1642531639957,0.00113685,3105.9,3105.8,4.36280909]
[1642531640158,0.8048294,3106.9,3105.8,4.36280909]
[1642531640159,7.59136266,3107.1,3105.9,4.9]
[1642531640358,0.1287,3107.0,3106.1,0.80479]
[1642531640557,0.00341054,3106.5,3106.2,0.1287]
[1642531640959,7.45,3107.1,3106.0,0.1287]
[1642531640960,0.00284212,3106.4,3106.0,0.1287]
[1642531641258,7.45,3107.1,3106.0,3.6691946]
[1642531641259,0.00227369,3106.3,3106.0,3.6691946]
[1642531641459,0.00227369,3106.3,3106.2,1.60956]
[1642531641657,8.2547839,3107.1,3106.3,1.22666727]
[1642531641858,8.5547839,3107.1,3107.0,1.46946282]
[1642531642259,7.75,3107.1,3107.0,1.46946282]
[1642531643704,7.8787,3107.1,3106.2,0.1287]
[1642531643905,1.60984,3106.9,3106.2,0.1287]
[1642531644110,0.4287,3106.8,3106.0,4.10292126]
[1642531644306,18.88,3106.6,3106.0,4.10292126]
[1642531644505,0.3,3106.4,3106.1,2.30735996]
[1642531644709,1.56820645,3106.3,3106.1,2.30735996]
[1642531644905,1.57048014,3106.3,3106.1,2.30735996]
[1642531645104,4.50170527,3106.2,3106.1,2.30735996]
[1642531645305,4.80170527,3106.2,3106.1,2.30735996]
[1642531646106,5.60680527,3106.2,3105.6,0.00170527]
[1642531646558,0.8050981,3106.0,3105.5,0.00227369]
[1642531647361,0.8050981,3106.0,3105.6,2.11343658]
[1642531647753,0.8050981,3106.0,3105.7,0.00113685]
[1642531647956,0.8050981,3106.0,3105.8,1.52127799]
[1642531648256,0.00113685,3106.1,3105.8,1.52127799]
[1642531648855,0.00113685,3106.1,3105.9,2.73558226]
[1642531649056,0.00113685,3106.1,3105.9,3.54060226]
[1642531649257,2.93207231,3106.1,3105.9,2.73558226]
[1642531649456,5.9287,3106.0,3105.9,2.73558226]
[1642531649659,9.90338252,3106.0,3105.9,2.73558226]
[1642531649861,10.20338252,3106.0,3105.9,2.73558226]
[1642531650056,11.20338252,3106.0,3105.9,2.73558226]
[1642531650305,13.30247542,3106.0,3105.7,0.00113685]
[1642531650504,2.6106172,3105.9,3105.7,0.00113685]
[1642531650706,8.95708199,3105.8,3105.5,0.00227369]
[1642531650906,9.25708199,3105.8,3105.3,1.90010287]
[1642531651106,1.0,3105.7,3105.4,0.00284212]
[1642531651305,3.00204359,3105.6,3105.4,0.00284212]
[1642531651511,1.51734377,3105.5,3105.4,0.00284212]
[1642531651711,11.3051369,3105.5,3105.4,0.00284212]
[1642531652110,11.3051369,3105.5,3104.8,0.00625266]
[1642531652111,11.6051369,3105.5,3104.8,0.00625266]
[1642531652311,0.80541,3105.3,3104.7,0.00682108]
[1642531652513,1.10541,3105.3,3104.7,0.00682108]
[1642531652811,1.1054009,3105.3,3105.0,2.06459058]
[1642531653012,1.9108209,3105.3,3105.0,2.06459058]
[1642531653212,2.7161309,3105.3,3105.1,0.00454739]
[1642531654653,5.8,3105.1,3104.6,0.257735]
[1642531654861,21.65430478,3105.0,3104.6,0.257735]
[1642531655058,21.65430478,3105.0,3104.2,4.10292126]
[1642531655059,5.8,3104.9,3104.2,4.10292126]
[1642531655252,0.80571,3104.7,3104.2,4.10292126]
[1642531655453,0.80571,3104.7,3104.2,3.77155846]
[1642531655454,5.8,3104.5,3104.2,3.77155846]
[1642531655656,5.8,3104.3,3104.0,1.61119189]
[1642531655854,0.1288,3104.2,3104.0,1.61119189]
[1642531656056,24.68,3104.1,3103.8,0.68578964]
[1642531656265,5.81219685,3103.9,3103.5,3.14574674]
[1642531656455,19.68596,3103.7,3103.2,1.63379803]
[1642531656659,1.45945818,3103.4,3103.2,1.63379803]
[1642531656860,5.9288,3103.3,3103.2,1.63379803]
[1642531657062,5.8,3103.2,3102.8,3.14574674]
[1642531657260,22.23086856,3103.1,3102.8,3.14574674]
[1642531657460,5.8,3102.9,3102.3,4.06358439]
[1642531657719,5.8,3102.9,3101.9,5.24619919]
[1642531657720,5.8,3102.5,3101.9,5.24619919]
[1642531657906,8.68586856,3102.4,3102.0,0.5]
[1642531658103,0.01226428,3102.1,3102.0,0.01307374]
[1642531658304,0.81869338,3102.1,3102.0,0.01307374]
[1642531658503,2.24749338,3102.1,3102.0,0.0022737]
[1642531658705,21.93389338,3102.1,3102.0,0.0022737]
[1642531659014,0.3,3102.0,3101.7,0.00397897]
[1642531659203,1.23514,3102.0,3101.7,0.00397897]
[1642531660405,22.98559762,3102.1,3101.7,0.00397897]
[1642531660406,0.68649852,3102.1,3101.7,0.00397897]
[1642531660607,0.68649852,3102.1,3101.8,0.1288]
[1642531661004,0.68649852,3102.1,3101.9,0.00284212]
[1642531661205,1.0,3102.5,3102.0,2.35224698]
[1642531661457,4.67346,3103.2,3103.0,1.70949864]
[1642531661660,4.67346,3103.2,3102.0,3.25822698]
[1642531661661,0.80596,3103.2,3102.1,0.00170527]
[1642531661860,0.14508715,3103.1,3102.1,0.00170527]
[1642531662261,0.00341054,3103.0,3101.8,0.00341054]
[1642531662463,0.80628,3102.5,3101.8,0.00341054]
[1642531662662,5.02947083,3101.9,3101.8,0.00341054]
[1642531662869,5.02947083,3101.9,3101.7,0.00397897]
[1642531663064,6.8,3101.8,3101.7,0.00397897]
[1642531663264,6.8,3101.8,3101.0,0.00795793]
[1642531663665,6.8,3101.8,3100.8,0.00909478]
[1642531664065,5.8,3101.8,3100.8,0.00909478]
[1642531664267,0.80638,3101.7,3100.8,0.00909478]
[1642531664467,1.61275,3102.0,3100.8,0.00909478]
[1642531664868,0.14157023,3102.4,3100.8,0.00909478]
[1642531665069,4.8194,3102.5,3100.8,0.00909478]
[1642531665313,4.8194,3102.5,3102.0,1.5194656]
[1642531665314,3.8194,3102.5,3102.0,1.5194656]
[1642531665517,1.0,3102.4,3102.0,1.5194656]
[1642531665711,1.0,3102.4,3102.1,0.00170527]
[1642531665913,18.88,3102.3,3102.1,0.00170527]
[1642531666112,18.88,3102.1,3100.9,0.00852635]
[1642531666317,0.1288,3102.0,3100.9,0.00852635]
[1642531666511,3.75209352,3102.0,3100.9,0.00852635]
[1642531666712,18.88,3101.9,3100.8,2.02230303]